[Event "Early-Titled-Tuesday-Blitz-May-14-2024"]
[Site "Chess.com"]
[Date "2024.05.14"]
[Round "8"]
[White "ernestina08chess"]
[Black "emeli_chess"]
[Result "1-0"]
[WhiteElo "2325"]
[BlackElo "2424"]
[TimeControl "180+1"]
[EndTime "9:31:13 PDT"]
[Termination "ernestina08chess won on time"]

1. d4 {[%clk 0:02:55.2]} 1... Nf6 {[%clk 0:02:59.7]} 2. c4 {[%clk 0:02:56.1]}
2... e6 {[%clk 0:02:59.9]} 3. Nf3 {[%clk 0:02:56.6]} 3... d5 {[%clk 0:02:59.6]}
4. g3 {[%clk 0:02:46.2]} 4... dxc4 {[%clk 0:02:59.4]} 5. Bg2 {[%clk 0:02:46.3]}
5... Nc6 {[%clk 0:02:59.4]} 6. O-O {[%clk 0:02:44.8]} 6... Rb8 {[%clk
0:02:59.6]} 7. a4 {[%clk 0:02:43.2]} 7... a6 {[%clk 0:02:59.1]} 8. Nc3 {[%clk
0:02:43.3]} 8... b5 {[%clk 0:02:48.8]} 9. axb5 {[%clk 0:02:28.9]} 9... axb5
{[%clk 0:02:48.9]} 10. Nxb5 {[%clk 0:02:29.4]} 10... Be7 {[%clk 0:01:56.7]} 11.
Ne5 {[%clk 0:02:02.6]} 11... Nxe5 {[%clk 0:01:28.7]} 12. dxe5 {[%clk 0:01:59.3]}
12... Nd5 {[%clk 0:01:22.4]} 13. Bxd5 {[%clk 0:01:48.5]} 13... exd5 {[%clk
0:01:19.7]} 14. Qxd5 {[%clk 0:01:42.8]} 14... O-O {[%clk 0:01:06.1]} 15. Qxd8
{[%clk 0:01:26.8]} 15... Bxd8 {[%clk 0:01:06]} 16. Na3 {[%clk 0:01:22.5]} 16...
Be6 {[%clk 0:01:03.8]} 17. Nc2 {[%clk 0:00:54.5]} 17... f6 {[%clk 0:01:00.1]}
18. Nd4 {[%clk 0:00:52.7]} 18... Bh3 {[%clk 0:01:00]} 19. Rd1 {[%clk 0:00:49.5]}
19... fxe5 {[%clk 0:00:56.1]} 20. Nc6 {[%clk 0:00:49.3]} 20... Rc8 {[%clk
0:00:56.3]} 21. Be3 {[%clk 0:00:47.1]} 21... Bf6 {[%clk 0:00:52.6]} 22. Rac1
{[%clk 0:00:46.1]} 22... Be6 {[%clk 0:00:48.7]} 23. Na5 {[%clk 0:00:43.1]} 23...
Rb8 {[%clk 0:00:42.6]} 24. Bc5 {[%clk 0:00:42.9]} 24... Rfc8 {[%clk 0:00:35.7]}
25. Ba3 {[%clk 0:00:40.4]} 25... Rd8 {[%clk 0:00:24.8]} 26. Rxd8+ {[%clk
0:00:33.4]} 26... Rxd8 {[%clk 0:00:24.4]} 27. Nxc4 {[%clk 0:00:34.3]} 27... e4
{[%clk 0:00:21.6]} 28. Ne3 {[%clk 0:00:31.7]} 28... Rd2 {[%clk 0:00:19]} 29. Rc6
{[%clk 0:00:29.3]} 29... Bh3 {[%clk 0:00:17]} 30. Rc2 {[%clk 0:00:20.7]} 30...
Rd7 {[%clk 0:00:15.1]} 31. f3 {[%clk 0:00:18.7]} 31... h5 {[%clk 0:00:14.7]} 32.
Bc5 {[%clk 0:00:16.2]} 32... Be6 {[%clk 0:00:13.2]} 33. Kf2 {[%clk 0:00:16.2]}
33... exf3 {[%clk 0:00:13.3]} 34. exf3 {[%clk 0:00:16.4]} 34... h4 {[%clk
0:00:12.2]} 35. g4 {[%clk 0:00:15.9]} 35... Be5 {[%clk 0:00:11.2]} 36. h3 {[%clk
0:00:15.5]} 36... Bf4 {[%clk 0:00:10.9]} 37. Ke2 {[%clk 0:00:16.2]} 37... Bb3
{[%clk 0:00:09.1]} 38. Rd2 {[%clk 0:00:16.5]} 38... Rf7 {[%clk 0:00:08]} 39. Rd4
{[%clk 0:00:15.5]} 39... Bg3 {[%clk 0:00:07.7]} 40. Rb4 {[%clk 0:00:14.7]} 40...
Be6 {[%clk 0:00:07.2]} 41. Bd4 {[%clk 0:00:11.2]} 41... Rd7 {[%clk 0:00:06.1]}
42. Bc3 {[%clk 0:00:11]} 42... c5 {[%clk 0:00:05.3]} 43. Re4 {[%clk 0:00:09.8]}
43... Bf7 {[%clk 0:00:04.6]} 44. f4 {[%clk 0:00:10.2]} 44... c4 {[%clk
0:00:03.5]} 45. Nxc4 {[%clk 0:00:09.2]} 45... Rb7 {[%clk 0:00:01.8]} 46. Ne5
{[%clk 0:00:09.4]} 46... Bd5 {[%clk 0:00:01.7]} 47. Re3 {[%clk 0:00:09.3]} 1-0

[Event "Early-Titled-Tuesday-Blitz-May-14-2024"]
[Site "Chess.com"]
[Date "2024.05.14"]
[Round "8"]
[White "Tigranpatagonian"]
[Black "Mikhail_Golubev"]
[Result "0-1"]
[WhiteElo "2374"]
[BlackElo "2541"]
[TimeControl "180+1"]
[EndTime "9:31:18 PDT"]
[Termination "Mikhail_Golubev won on time"]

1. d4 {[%clk 0:02:53.1]} 1... Nf6 {[%clk 0:02:59.5]} 2. c4 {[%clk 0:02:53.6]}
2... d6 {[%clk 0:02:59]} 3. Nc3 {[%clk 0:02:52.8]} 3... g6 {[%clk 0:02:59.3]} 4.
g3 {[%clk 0:02:52.6]} 4... Bg7 {[%clk 0:02:59.8]} 5. Bg2 {[%clk 0:02:53.2]} 5...
O-O {[%clk 0:03:00.2]} 6. Nf3 {[%clk 0:02:53.6]} 6... Nbd7 {[%clk 0:03:00.8]} 7.
O-O {[%clk 0:02:53.3]} 7... e5 {[%clk 0:03:01.3]} 8. Qc2 {[%clk 0:02:53.9]} 8...
exd4 {[%clk 0:02:58.5]} 9. Nxd4 {[%clk 0:02:53.5]} 9... Nb6 {[%clk 0:02:58.3]}
10. Rd1 {[%clk 0:02:53]} 10... Nxc4 {[%clk 0:02:58]} 11. Ncb5 {[%clk 0:02:48.3]}
11... a6 {[%clk 0:02:58.1]} 12. Qxc4 {[%clk 0:02:45.4]} 12... axb5 {[%clk
0:02:58.2]} 13. Nxb5 {[%clk 0:02:44.9]} 13... Ne8 {[%clk 0:02:58]} 14. a4 {[%clk
0:02:37.7]} 14... Qe7 {[%clk 0:02:45.5]} 15. Ra3 {[%clk 0:02:33.5]} 15... c6
{[%clk 0:02:41.4]} 16. Nd4 {[%clk 0:02:29.5]} 16... d5 {[%clk 0:02:38.6]} 17.
Qc2 {[%clk 0:02:27.2]} 17... Nd6 {[%clk 0:02:28.4]} 18. Re3 {[%clk 0:02:18.3]}
18... Qf6 {[%clk 0:02:20.6]} 19. b3 {[%clk 0:02:13]} 19... Nf5 {[%clk
0:02:12.8]} 20. Nxf5 {[%clk 0:02:10.5]} 20... Bxf5 {[%clk 0:02:13.7]} 21. Qc5
{[%clk 0:02:03.6]} 21... d4 {[%clk 0:01:38]} 22. Rf3 {[%clk 0:01:59.5]} 22...
Qe6 {[%clk 0:01:30.8]} 23. Re1 {[%clk 0:01:30.6]} 23... Be4 {[%clk 0:01:25.9]}
24. Rf4 {[%clk 0:01:23.2]} 24... Bxg2 {[%clk 0:01:25.9]} 25. Kxg2 {[%clk
0:01:22.1]} 25... Qxb3 {[%clk 0:01:26]} 26. a5 {[%clk 0:01:10.2]} 26... Rad8
{[%clk 0:01:05.4]} 27. Rf3 {[%clk 0:00:53.9]} 27... Qd5 {[%clk 0:01:02.1]} 28.
Ba3 {[%clk 0:00:48.3]} 28... Rfe8 {[%clk 0:00:52.5]} 29. Bb4 {[%clk 0:00:24.1]}
29... Bf8 {[%clk 0:00:21.8]} 30. Qxd5 {[%clk 0:00:17.6]} 30... Rxd5 {[%clk
0:00:22.7]} 31. Bd2 {[%clk 0:00:16.3]} 31... c5 {[%clk 0:00:17.9]} 32. Rb1
{[%clk 0:00:15.6]} 32... Rd7 {[%clk 0:00:14.9]} 33. Rfb3 {[%clk 0:00:14.5]}
33... c4 {[%clk 0:00:09.5]} 34. Rxb7 {[%clk 0:00:13]} 34... Rxb7 {[%clk
0:00:09.4]} 35. Rxb7 {[%clk 0:00:13.7]} 35... c3 {[%clk 0:00:08.3]} 36. Bf4
{[%clk 0:00:13.1]} 36... Rxe2 {[%clk 0:00:06.6]} 37. Rb8 {[%clk 0:00:12.9]}
37... Kg7 {[%clk 0:00:05.4]} 38. a6 {[%clk 0:00:12.8]} 38... Ra2 {[%clk
0:00:05.2]} 39. Be5+ {[%clk 0:00:12.3]} 39... f6 {[%clk 0:00:03.4]} 40. Bxd4
{[%clk 0:00:12.5]} 40... Rxa6 {[%clk 0:00:03.1]} 41. Bxc3 {[%clk 0:00:11.9]}
41... Rc6 {[%clk 0:00:02.4]} 42. Rb7+ {[%clk 0:00:10.8]} 42... Kg8 {[%clk
0:00:02]} 43. Bd2 {[%clk 0:00:10.7]} 43... h5 {[%clk 0:00:02.1]} 44. h4 {[%clk
0:00:10.1]} 44... Re6 {[%clk 0:00:01.3]} 45. Rb8 {[%clk 0:00:07.3]} 45... f5
{[%clk 0:00:01.7]} 46. Bb4 {[%clk 0:00:06.1]} 46... Rf6 {[%clk 0:00:02.1]} 47.
Kf3 {[%clk 0:00:06.3]} 47... Rf7 {[%clk 0:00:02.2]} 48. Kf4 {[%clk 0:00:05.7]}
48... Kg7 {[%clk 0:00:02.2]} 49. Bxf8+ {[%clk 0:00:04.5]} 49... Rxf8 {[%clk
0:00:02.8]} 50. Rxf8 {[%clk 0:00:04.1]} 50... Kxf8 {[%clk 0:00:03.3]} 51. Kg5
{[%clk 0:00:01.9]} 51... Kf7 {[%clk 0:00:03.1]} 0-1

[Event "Early-Titled-Tuesday-Blitz-May-14-2024"]
[Site "Chess.com"]
[Date "2024.05.14"]
[Round "8"]
[White "ivana_999"]
[Black "th3d4rkness"]
[Result "1/2-1/2"]
[WhiteElo "1876"]
[BlackElo "2164"]
[TimeControl "180+1"]
[EndTime "9:31:19 PDT"]
[Termination "Game drawn by repetition"]

1. d4 {[%clk 0:03:00.9]} 1... Nf6 {[%clk 0:02:58.6]} 2. c4 {[%clk 0:03:01.1]}
2... e6 {[%clk 0:02:59.1]} 3. Nc3 {[%clk 0:03:01.7]} 3... Bb4 {[%clk 0:02:59.1]}
4. a3 {[%clk 0:03:02.3]} 4... Bxc3+ {[%clk 0:02:59.1]} 5. bxc3 {[%clk
0:03:03.2]} 5... d6 {[%clk 0:02:55.5]} 6. f3 {[%clk 0:03:02.2]} 6... c5 {[%clk
0:02:55.3]} 7. e4 {[%clk 0:03:02.5]} 7... Nc6 {[%clk 0:02:53.6]} 8. Be3 {[%clk
0:02:54.6]} 8... b6 {[%clk 0:02:52.7]} 9. Bd3 {[%clk 0:02:54.6]} 9... e5 {[%clk
0:02:49.9]} 10. d5 {[%clk 0:02:53]} 10... Na5 {[%clk 0:02:49.4]} 11. Ne2 {[%clk
0:02:45.8]} 11... O-O {[%clk 0:02:48.4]} 12. Ng3 {[%clk 0:02:44.8]} 12... Ba6
{[%clk 0:02:39.6]} 13. Qe2 {[%clk 0:02:44.5]} 13... Qd7 {[%clk 0:02:24.9]} 14.
a4 {[%clk 0:02:43.3]} 14... h6 {[%clk 0:02:14.5]} 15. O-O {[%clk 0:02:41.9]}
15... Nh7 {[%clk 0:02:12.2]} 16. Nf5 {[%clk 0:02:23.4]} 16... Bc8 {[%clk
0:02:04.9]} 17. f4 {[%clk 0:02:21.9]} 17... f6 {[%clk 0:02:01.4]} 18. Qg4 {[%clk
0:02:16.2]} 18... Kh8 {[%clk 0:01:54.9]} 19. fxe5 {[%clk 0:02:08.2]} 19... fxe5
{[%clk 0:01:53.4]} 20. Rf3 {[%clk 0:01:14]} 20... Qc7 {[%clk 0:01:52.8]} 21.
Raf1 {[%clk 0:01:05.3]} 21... Bxf5 {[%clk 0:01:51.3]} 22. Rxf5 {[%clk
0:01:04.9]} 22... Rxf5 {[%clk 0:01:46.2]} 23. exf5 {[%clk 0:01:03.6]} 23... Qe7
{[%clk 0:01:36.1]} 24. f6 {[%clk 0:00:58.5]} 24... Nxf6 {[%clk 0:01:31.2]} 25.
Qg6 {[%clk 0:00:57.5]} 25... e4 {[%clk 0:01:28.4]} 26. Be2 {[%clk 0:00:45.2]}
26... Rf8 {[%clk 0:01:21.1]} 27. Bxh6 {[%clk 0:00:21]} 27... gxh6 {[%clk
0:01:16.2]} 28. Qxh6+ {[%clk 0:00:21.1]} 28... Nh7 {[%clk 0:01:09.4]} 29. Rxf8+
{[%clk 0:00:09.6]} 29... Qxf8 {[%clk 0:01:09]} 30. Qe6 {[%clk 0:00:07.5]} 30...
Nb3 {[%clk 0:01:03.5]} 31. Qxe4 {[%clk 0:00:07]} 31... Qf6 {[%clk 0:01:00]} 32.
Qe8+ {[%clk 0:00:06.2]} 32... Nf8 {[%clk 0:00:59.4]} 33. Qh5+ {[%clk 0:00:04.4]}
33... Kg7 {[%clk 0:00:58.8]} 34. Qg4+ {[%clk 0:00:05]} 34... Ng6 {[%clk
0:00:56.5]} 35. Bd3 {[%clk 0:00:04.5]} 35... Nd2 {[%clk 0:00:51.5]} 36. h4
{[%clk 0:00:04.2]} 36... Kf7 {[%clk 0:00:42.5]} 37. Bxg6+ {[%clk 0:00:04]} 37...
Qxg6 {[%clk 0:00:42.1]} 38. Qd7+ {[%clk 0:00:03.8]} 38... Kg8 {[%clk 0:00:40.1]}
39. Qd8+ {[%clk 0:00:03.1]} 39... Kh7 {[%clk 0:00:39]} 40. Qe7+ {[%clk
0:00:03.2]} 40... Kh6 {[%clk 0:00:39]} 41. Qe3+ {[%clk 0:00:01.3]} 41... Kh5
{[%clk 0:00:39.3]} 42. Qxd2 {[%clk 0:00:02.1]} 42... Kxh4 {[%clk 0:00:37.8]} 43.
Qf4+ {[%clk 0:00:03]} 43... Kh5 {[%clk 0:00:37.6]} 44. g4+ {[%clk 0:00:02.7]}
44... Kh4 {[%clk 0:00:34.9]} 45. Qh2+ {[%clk 0:00:02.5]} 45... Kxg4 {[%clk
0:00:34.4]} 46. Qg2+ {[%clk 0:00:03]} 46... Kf5 {[%clk 0:00:34.5]} 47. Qxg6+
{[%clk 0:00:03]} 47... Kxg6 {[%clk 0:00:34.7]} 48. Kf2 {[%clk 0:00:03.9]} 48...
Kf5 {[%clk 0:00:35.2]} 49. Kf3 {[%clk 0:00:04.6]} 49... a6 {[%clk 0:00:34.3]}
50. Ke3 {[%clk 0:00:02]} 50... Kg4 {[%clk 0:00:34.1]} 51. Ke4 {[%clk 0:00:01.9]}
51... Kg5 {[%clk 0:00:32.5]} 52. Ke3 {[%clk 0:00:01.6]} 52... Kg4 {[%clk
0:00:32.7]} 53. Ke4 {[%clk 0:00:01.9]} 53... a5 {[%clk 0:00:27.3]} 54. Ke3
{[%clk 0:00:02.3]} 54... Kf5 {[%clk 0:00:24.2]} 55. Kf3 {[%clk 0:00:02.6]} 55...
Ke5 {[%clk 0:00:23.2]} 56. Ke3 {[%clk 0:00:03.2]} 56... Kf5 {[%clk 0:00:23.2]}
57. Kf3 {[%clk 0:00:03.9]} 57... Kg5 {[%clk 0:00:23.4]} 58. Kg3 {[%clk
0:00:04.6]} 58... Kf5 {[%clk 0:00:20]} 59. Kf3 {[%clk 0:00:05.1]} 1/2-1/2

[Event "Early-Titled-Tuesday-Blitz-May-14-2024"]
[Site "Chess.com"]
[Date "2024.05.14"]
[Round "8"]
[White "talaicito"]
[Black "Alenzer"]
[Result "1-0"]
[WhiteElo "2370"]
[BlackElo "2198"]
[TimeControl "180+1"]
[EndTime "9:31:19 PDT"]
[Termination "talaicito won on time"]

1. d4 {[%clk 0:03:00.9]} 1... d5 {[%clk 0:02:59.3]} 2. Bf4 {[%clk 0:02:59.3]}
2... c5 {[%clk 0:02:58.9]} 3. e3 {[%clk 0:02:58.9]} 3... Nf6 {[%clk 0:02:58.3]}
4. Nc3 {[%clk 0:02:59]} 4... Nc6 {[%clk 0:02:57.2]} 5. Nf3 {[%clk 0:02:59.6]}
5... Bf5 {[%clk 0:02:53.6]} 6. Bd3 {[%clk 0:02:57]} 6... Bxd3 {[%clk 0:02:50.5]}
7. cxd3 {[%clk 0:02:57.9]} 7... e6 {[%clk 0:02:49.9]} 8. O-O {[%clk 0:02:57]}
8... cxd4 {[%clk 0:02:49.2]} 9. exd4 {[%clk 0:02:55]} 9... Bd6 {[%clk
0:02:49.2]} 10. Bg5 {[%clk 0:02:46.4]} 10... O-O {[%clk 0:02:48.4]} 11. Rc1
{[%clk 0:02:44.2]} 11... h6 {[%clk 0:02:47.8]} 12. Bh4 {[%clk 0:02:38.7]} 12...
a6 {[%clk 0:02:42.8]} 13. Qb3 {[%clk 0:02:29.1]} 13... Qd7 {[%clk 0:02:31.8]}
14. Na4 {[%clk 0:02:15.7]} 14... Na5 {[%clk 0:02:08.6]} 15. Qd1 {[%clk
0:02:15.2]} 15... Qb5 {[%clk 0:01:56.8]} 16. b3 {[%clk 0:01:51.3]} 16... Rac8
{[%clk 0:01:46]} 17. Rxc8 {[%clk 0:01:47.3]} 17... Rxc8 {[%clk 0:01:45.6]} 18.
Bxf6 {[%clk 0:01:47]} 18... gxf6 {[%clk 0:01:45.4]} 19. Qd2 {[%clk 0:01:47.5]}
19... Kg7 {[%clk 0:01:45]} 20. Rc1 {[%clk 0:01:44.3]} 20... Rxc1+ {[%clk
0:01:39.5]} 21. Qxc1 {[%clk 0:01:44.3]} 21... Qxd3 {[%clk 0:01:34.9]} 22. h3
{[%clk 0:01:42.8]} 22... Nc6 {[%clk 0:01:29]} 23. Nc5 {[%clk 0:01:27.2]} 23...
Bxc5 {[%clk 0:00:58.2]} 24. Qxc5 {[%clk 0:01:28.1]} 24... Qb1+ {[%clk
0:00:52.3]} 25. Kh2 {[%clk 0:01:26.6]} 25... Qxa2 {[%clk 0:00:52.7]} 26. Qb6
{[%clk 0:01:15.8]} 26... Qxf2 {[%clk 0:00:46.4]} 27. Qxb7 {[%clk 0:00:42.8]}
27... Nxd4 {[%clk 0:00:45.4]} 28. Nxd4 {[%clk 0:00:42.8]} 28... Qf4+ {[%clk
0:00:39.9]} 29. Kh1 {[%clk 0:00:41.2]} 29... Qxd4 {[%clk 0:00:38.5]} 30. Qxa6
{[%clk 0:00:41.4]} 30... Qd1+ {[%clk 0:00:37]} 31. Kh2 {[%clk 0:00:40.1]} 31...
Qxb3 {[%clk 0:00:37.3]} 32. Qe2 {[%clk 0:00:34.1]} 32... Qc4 {[%clk 0:00:34.2]}
33. Qf2 {[%clk 0:00:33.7]} 33... e5 {[%clk 0:00:29.9]} 34. Qg3+ {[%clk
0:00:27.8]} 34... Kf8 {[%clk 0:00:29.7]} 35. Qa3+ {[%clk 0:00:24.2]} 35... Ke8
{[%clk 0:00:23.4]} 36. Qa8+ {[%clk 0:00:22.6]} 36... Kd7 {[%clk 0:00:21.1]} 37.
Qb7+ {[%clk 0:00:19.5]} 37... Kd6 {[%clk 0:00:21.2]} 38. Qb6+ {[%clk 0:00:18.6]}
38... Ke7 {[%clk 0:00:16.4]} 39. Qa7+ {[%clk 0:00:14.1]} 39... Ke6 {[%clk
0:00:15.7]} 40. Qb6+ {[%clk 0:00:13.8]} 40... Kf5 {[%clk 0:00:15.4]} 41. Qb7
{[%clk 0:00:10.3]} 41... Qf4+ {[%clk 0:00:12.3]} 42. Kh1 {[%clk 0:00:10.2]}
42... d4 {[%clk 0:00:08.2]} 43. Qc8+ {[%clk 0:00:08.9]} 43... Kg6 {[%clk
0:00:08.2]} 44. Qg8+ {[%clk 0:00:07.6]} 44... Kf5 {[%clk 0:00:08.8]} 45. Qh7+
{[%clk 0:00:07.7]} 45... Ke6 {[%clk 0:00:08.2]} 46. Qd3 {[%clk 0:00:07.2]} 46...
Qc1+ {[%clk 0:00:05.7]} 47. Kh2 {[%clk 0:00:06.9]} 47... Qc3 {[%clk 0:00:05]}
48. Qa6+ {[%clk 0:00:05.2]} 48... Kf5 {[%clk 0:00:05.2]} 49. Qb7 {[%clk
0:00:04.4]} 1-0

[Event "Early-Titled-Tuesday-Blitz-May-14-2024"]
[Site "Chess.com"]
[Date "2024.05.14"]
[Round "8"]
[White "h4parah5"]
[Black "Grischuk"]
[Result "0-1"]
[WhiteElo "3044"]
[BlackElo "3123"]
[TimeControl "180+1"]
[EndTime "9:31:21 PDT"]
[Termination "Grischuk won by resignation"]

1. Nf3 {[%clk 0:03:00.9]} 1... d5 {[%clk 0:02:59.7]} 2. e3 {[%clk 0:03:00.3]}
2... Nf6 {[%clk 0:02:59.7]} 3. c4 {[%clk 0:03:00.6]} 3... e6 {[%clk 0:02:59.5]}
4. b3 {[%clk 0:03:00.8]} 4... c5 {[%clk 0:02:59.6]} 5. Bb2 {[%clk 0:03:00.4]}
5... Nc6 {[%clk 0:02:59.2]} 6. cxd5 {[%clk 0:03:00.2]} 6... exd5 {[%clk
0:03:00.1]} 7. Be2 {[%clk 0:03:00.2]} 7... d4 {[%clk 0:02:55]} 8. exd4 {[%clk
0:02:59.6]} 8... cxd4 {[%clk 0:02:54.6]} 9. Bb5 {[%clk 0:02:59.3]} 9... Bc5
{[%clk 0:02:51.6]} 10. Qe2+ {[%clk 0:02:55.2]} 10... Be6 {[%clk 0:02:48.9]} 11.
Bxc6+ {[%clk 0:02:40.6]} 11... bxc6 {[%clk 0:02:49.8]} 12. O-O {[%clk
0:02:40.7]} 12... O-O {[%clk 0:02:43]} 13. Qe5 {[%clk 0:02:40.5]} 13... Bd5
{[%clk 0:02:01]} 14. Bxd4 {[%clk 0:02:29.8]} 14... Re8 {[%clk 0:01:59.5]} 15.
Qf4 {[%clk 0:02:20.2]} 15... Bxd4 {[%clk 0:00:59.7]} 16. Qxd4 {[%clk 0:02:21.1]}
16... Bxf3 {[%clk 0:00:59.3]} 17. Qxd8 {[%clk 0:02:21]} 17... Raxd8 {[%clk
0:01:00.2]} 18. gxf3 {[%clk 0:02:21.3]} 18... h5 {[%clk 0:00:55.1]} 19. Nc3
{[%clk 0:02:06.1]} 19... Rxd2 {[%clk 0:00:51]} 20. Rfd1 {[%clk 0:02:05]} 20...
Red8 {[%clk 0:00:47.7]} 21. Kf1 {[%clk 0:01:46.8]} 21... R8d3 {[%clk 0:00:47]}
22. Rxd2 {[%clk 0:01:45.5]} 22... Rxd2 {[%clk 0:00:47.9]} 23. Rc1 {[%clk
0:01:45.4]} 23... h4 {[%clk 0:00:41.3]} 24. Ne4 {[%clk 0:01:33.7]} 24... Nxe4
{[%clk 0:00:38.8]} 25. fxe4 {[%clk 0:01:34.6]} 25... Rxa2 {[%clk 0:00:37.9]} 26.
Rxc6 {[%clk 0:01:33.8]} 26... Rb2 {[%clk 0:00:36.8]} 27. Rc8+ {[%clk 0:01:16.6]}
27... Kh7 {[%clk 0:00:36.6]} 28. Rc7 {[%clk 0:01:17.5]} 28... f6 {[%clk
0:00:35.2]} 29. Rxa7 {[%clk 0:01:16.7]} 29... Rxb3 {[%clk 0:00:35.2]} 30. Kg2
{[%clk 0:01:17.2]} 30... h3+ {[%clk 0:00:32.8]} 31. Kf1 {[%clk 0:01:15.9]} 31...
Rb1+ {[%clk 0:00:33.1]} 32. Ke2 {[%clk 0:01:15.4]} 32... Rh1 {[%clk 0:00:33.6]}
33. Kf3 {[%clk 0:01:13.7]} 33... Rxh2 {[%clk 0:00:33.5]} 34. Ra1 {[%clk
0:01:10.3]} 34... g5 {[%clk 0:00:14.6]} 35. e5 {[%clk 0:00:47.4]} 35... fxe5
{[%clk 0:00:11.6]} 36. Kg3 {[%clk 0:00:26.4]} 36... Rg2+ {[%clk 0:00:11.5]} 37.
Kxh3 {[%clk 0:00:27]} 37... Rxf2 {[%clk 0:00:11.7]} 38. Re1 {[%clk 0:00:22.5]}
38... Rf5 {[%clk 0:00:09.1]} 39. Kg4 {[%clk 0:00:22.1]} 39... Kg6 {[%clk
0:00:09.7]} 40. Re2 {[%clk 0:00:17.8]} 40... Rf4+ {[%clk 0:00:09.8]} 41. Kg3
{[%clk 0:00:18.3]} 41... Kf5 {[%clk 0:00:10.7]} 42. Ra2 {[%clk 0:00:17.7]} 42...
g4 {[%clk 0:00:10.3]} 43. Ra8 {[%clk 0:00:17.4]} 43... Rf3+ {[%clk 0:00:10.6]}
44. Kg2 {[%clk 0:00:17.6]} 44... Kf4 {[%clk 0:00:10.7]} 45. Rf8+ {[%clk
0:00:15.6]} 45... Ke3 {[%clk 0:00:10.9]} 46. Rg8 {[%clk 0:00:15.8]} 46... Rf4
{[%clk 0:00:06.4]} 47. Kg3 {[%clk 0:00:15.8]} 47... e4 {[%clk 0:00:06.2]} 48.
Ra8 {[%clk 0:00:14.1]} 48... Rf7 {[%clk 0:00:02.4]} 49. Ra3+ {[%clk 0:00:13.5]}
49... Ke2 {[%clk 0:00:02.9]} 50. Ra2+ {[%clk 0:00:13.8]} 50... Kd3 {[%clk
0:00:03.5]} 51. Ra3+ {[%clk 0:00:14]} 51... Kd2 {[%clk 0:00:04]} 52. Ra2+ {[%clk
0:00:13.9]} 52... Kc3 {[%clk 0:00:04.5]} 53. Ra3+ {[%clk 0:00:13.5]} 53... Kb4
{[%clk 0:00:05]} 54. Ra1 {[%clk 0:00:12.8]} 54... e3 {[%clk 0:00:04.4]} 55. Re1
{[%clk 0:00:12.1]} 55... Re7 {[%clk 0:00:04.4]} 56. Kxg4 {[%clk 0:00:11.7]}
56... Kc3 {[%clk 0:00:04.5]} 57. Kf3 {[%clk 0:00:12.1]} 57... Kd2 {[%clk
0:00:04.8]} 58. Re2+ {[%clk 0:00:11.7]} 58... Kd3 {[%clk 0:00:05.2]} 59. Ra2
{[%clk 0:00:10.1]} 59... e2 {[%clk 0:00:05.7]} 0-1

[Event "Early-Titled-Tuesday-Blitz-May-14-2024"]
[Site "Chess.com"]
[Date "2024.05.14"]
[Round "8"]
[White "laboratorio25"]
[Black "JJDAREK"]
[Result "1-0"]
[WhiteElo "2544"]
[BlackElo "2381"]
[TimeControl "180+1"]
[EndTime "9:31:21 PDT"]
[Termination "laboratorio25 won on time"]

1. e4 {[%clk 0:03:00.9]} 1... d6 {[%clk 0:03:00.2]} 2. d4 {[%clk 0:03:00.6]}
2... Nf6 {[%clk 0:03:00.7]} 3. Nc3 {[%clk 0:03:00.9]} 3... g6 {[%clk 0:03:01.3]}
4. Nf3 {[%clk 0:02:59.6]} 4... Bg7 {[%clk 0:03:00.5]} 5. Bd3 {[%clk 0:02:58.5]}
5... O-O {[%clk 0:03:00.3]} 6. h3 {[%clk 0:02:58.6]} 6... a6 {[%clk 0:03:00.2]}
7. O-O {[%clk 0:02:58.5]} 7... Nc6 {[%clk 0:02:57.8]} 8. Qe2 {[%clk 0:02:52.5]}
8... e5 {[%clk 0:02:56.8]} 9. d5 {[%clk 0:02:51.8]} 9... Ne7 {[%clk 0:02:54.6]}
10. a4 {[%clk 0:02:47.3]} 10... Ne8 {[%clk 0:02:49.7]} 11. Bg5 {[%clk
0:02:42.1]} 11... h6 {[%clk 0:02:45]} 12. Bxe7 {[%clk 0:02:37.3]} 12... Qxe7
{[%clk 0:02:45.9]} 13. Nd2 {[%clk 0:02:36]} 13... f5 {[%clk 0:02:43]} 14. f4
{[%clk 0:02:22.7]} 14... exf4 {[%clk 0:02:41.8]} 15. exf5 {[%clk 0:02:19.5]}
15... Qxe2 {[%clk 0:02:27.1]} 16. Bxe2 {[%clk 0:02:19.4]} 16... g5 {[%clk
0:02:19.5]} 17. g4 {[%clk 0:02:06.5]} 17... fxg3 {[%clk 0:02:13.8]} 18. Bd3
{[%clk 0:02:06.5]} 18... Nf6 {[%clk 0:01:55.5]} 19. Kg2 {[%clk 0:01:58.6]} 19...
Nh5 {[%clk 0:01:52]} 20. Be4 {[%clk 0:01:56.5]} 20... Bd7 {[%clk 0:01:42.4]} 21.
Rae1 {[%clk 0:01:47.6]} 21... Rae8 {[%clk 0:01:37.7]} 22. Nc4 {[%clk 0:01:37.7]}
22... Bxc3 {[%clk 0:00:59.1]} 23. bxc3 {[%clk 0:01:37.3]} 23... Bxa4 {[%clk
0:00:53.4]} 24. Bf3 {[%clk 0:01:14.9]} 24... Nf4+ {[%clk 0:00:47.6]} 25. Kxg3
{[%clk 0:01:15.3]} 25... Rxf5 {[%clk 0:00:41.6]} 26. Bg4 {[%clk 0:01:10.7]}
26... Rff8 {[%clk 0:00:24.1]} 27. Ne3 {[%clk 0:01:01.6]} 27... h5 {[%clk
0:00:18]} 28. Bd1 {[%clk 0:00:56.6]} 28... h4+ {[%clk 0:00:14.7]} 29. Kh2 {[%clk
0:00:54.2]} 29... Kg7 {[%clk 0:00:13.1]} 30. Bg4 {[%clk 0:00:53.5]} 30... Bb5
{[%clk 0:00:10.2]} 31. c4 {[%clk 0:00:53.4]} 31... Ba4 {[%clk 0:00:07.6]} 32.
Nf5+ {[%clk 0:00:52.3]} 32... Kf6 {[%clk 0:00:07.7]} 33. Nd4 {[%clk 0:00:51.5]}
33... Re5 {[%clk 0:00:07.5]} 34. Nf3 {[%clk 0:00:50.6]} 34... Rxe1 {[%clk
0:00:06.7]} 35. Nxe1 {[%clk 0:00:45.4]} 35... Re8 {[%clk 0:00:06.6]} 36. Ng2
{[%clk 0:00:45.6]} 36... Re5 {[%clk 0:00:04]} 37. Nxf4 {[%clk 0:00:45.3]} 37...
gxf4 {[%clk 0:00:04.9]} 38. Rxf4+ {[%clk 0:00:45.7]} 38... Kg5 {[%clk
0:00:05.4]} 39. Rf7 {[%clk 0:00:45.7]} 39... Re4 {[%clk 0:00:04.5]} 40. Rxc7
{[%clk 0:00:43.2]} 40... b5 {[%clk 0:00:04.5]} 41. c5 {[%clk 0:00:42.4]} 41...
dxc5 {[%clk 0:00:03.2]} 42. d6 {[%clk 0:00:42.8]} 42... Rd4 {[%clk 0:00:03.1]}
43. Rxc5+ {[%clk 0:00:40.8]} 43... Kf4 {[%clk 0:00:02.6]} 44. d7 {[%clk
0:00:37.1]} 44... Ke3 {[%clk 0:00:00.8]} 45. Re5+ {[%clk 0:00:34.9]} 45... Kd2
{[%clk 0:00:00.9]} 46. Re8 {[%clk 0:00:32.9]} 46... Kxc2 {[%clk 0:00:01.3]} 47.
d8=Q {[%clk 0:00:32]} 47... Rxd8 {[%clk 0:00:02.2]} 48. Rxd8 {[%clk 0:00:32.4]}
48... b4 {[%clk 0:00:02.6]} 49. Be2 {[%clk 0:00:29.4]} 49... b3 {[%clk
0:00:02.5]} 50. Bd3+ {[%clk 0:00:24.3]} 50... Kc3 {[%clk 0:00:02.5]} 51. Bf5
{[%clk 0:00:19.6]} 51... a5 {[%clk 0:00:01.3]} 52. Rc8+ {[%clk 0:00:19.5]} 52...
Kb4 {[%clk 0:00:00.6]} 53. Rb8+ {[%clk 0:00:19.7]} 53... Kc3 {[%clk 0:00:00.6]}
54. Ra8 {[%clk 0:00:19.6]} 54... b2 {[%clk 0:00:00.3]} 55. Rxa5 {[%clk
0:00:19.4]} 55... Bc2 {[%clk 0:00:00.4]} 56. Rc5+ {[%clk 0:00:16.6]} 56... Kd4
{[%clk 0:00:00.7]} 57. Rxc2 {[%clk 0:00:14.8]} 1-0